Cogmind - Beta 16 --- EXPLORER MODE // 2025.12.25 @ 14:53:58 Player: K.K.Y. Result: Destroyed by TO-JAW(R) with Subdweller Machine Gun Performance ------------- Evolutions (0) 0 Regions Visited (3) 600 Robots Destroyed (15) 75 Value Destroyed (422) 422 Prototype IDs (6) 120 Alien Tech Used (0) 0 Bonus (0) 0 TOTAL SCORE: 1217 Bonus ------- None Cogmind --------- Core Integrity 0/250 Matter 300/300 Energy 199/200 System Corruption 1% Temperature Cool (0) Movement Core (300) Ox5 Location -10/Subcaves Parts ------- > --- POWER (1) -------- Subdweller Power Source > --- PROPULSION (2) --- (None) > --- UTILITY (3) ------ Medium Storage Unit Structural Scanner Core Shielding > --- WEAPON (2) ------- (None) > --- INVENTORY (10) --- Ion Engine Light Treads Light Treads Improved Heat Sink Huge Storage Unit Mining Laser Makeshift Sword Peak State ------------ > --- POWER ------------ (None) > --- PROPULSION ------- Light Treads > --- UTILITY ---------- Medium Storage Unit Structural Scanner Core Shielding > --- WEAPON ----------- Riot Gun Assault Rifle > --- INVENTORY -------- Ion Engine Light Treads Light Treads Improved Heat Sink Huge Storage Unit Mining Laser Makeshift Sword [Rating: 9] Favorites ----------- Power Ion Engine Engine Ion Engine Propulsion Light Treads Treads Light Treads Utility Medium Storage Unit Device Structural Scanner Storage Medium Storage Unit Protection Core Shielding Weapon Assault Rifle Energy Gun Subdweller Laser Ballistic Gun Assault Rifle Build | -11 -10 -10 -10 ------- Run | Yrd Mat Min Sub Slots Evolved 1 | . 1 . . Power . | . . . . Propulsion . | . . . . Utility 1 | . 1 . . Weapon . | . . . . Parts Attached 12 | 7 2 . 3 Power 2 | 1 . . 1 Engine 2 | 1 . . 1 Core . | . . . . Reactor . | . . . . Propulsion 3 | 2 1 . . Treads 3 | 2 1 . . Leg . | . . . . Wheel . | . . . . Hover . | . . . . Flight . | . . . . Utility 3 | 2 1 . . Device 1 | . 1 . . Storage 1 | 1 . . . Processor . | . . . . Hackware . | . . . . Protection 1 | 1 . . . Artifact . | . . . . Weapon 4 | 2 . . 2 Energy Gun 2 | . . . 2 Energy Cannon . | . . . . Ballistic Gun 2 | 2 . . . Ballistic Cannon . | . . . . Launcher . | . . . . Special Weapon . | . . . . Impact Weapon . | . . . . Slashing Weapon . | . . . . Piercing Weapon . | . . . . Special Melee Weapon . | . . . . Unidentified Prototypes . | . . . . Parts Lost 7 | . . . 7 Power 1 | . . . 1 Propulsion 2 | . . . 2 Utility . | . . . . Weapon 4 | . . . 4 Highest Loss Streak 4 | . . . 4 To Critical Strikes 1 | . . . 1 Average Backups 4 | 1 2 5 6 Power . | . . 1 1 Propulsion 1 | . . 1 2 Utility 1 | . . 1 2 Weapon 1 | . 1 1 1 Tool/Special . | . . . . Unused Backups 7 | . . . 7 Power 1 | . . . 1 Propulsion 2 | . . . 2 Utility 2 | . . . 2 Weapon 2 | . . . 2 Tool/Special . | . . . . Average Slot Usage (%) 90 | . 84 100 80 Engine 10 | . 11 12 5 Treads 23 | . 22 25 19 Device 6 | . . 12 12 Storage 12 | . 12 12 12 Protection 12 | . 12 12 12 Ballistic Gun 23 | . 24 25 15 Peak Build Rating 9 | 7 8 8 9 Average Rating 7 | 5 6 8 7 On Entrance 5 | . 7 8 8 Avg Prop Armor Cover (%) . | . . . . Naked Turns . | . . . . Heaviest Build 21 | 20 21 21 21 Greatest Support 40 | 40 40 40 40 Greatest Overweight (x) 6 | 3 5 . 6 Average Overweight (x) . | . . . . Largest Inventory Capacity 10 | 10 10 10 10 Average Capacity 9 | 9 10 10 10 Most Carried 8 | 6 8 6 8 Average Carried 4 | 1 2 5 6 Final Capacity 10 | 10 10 10 10 Final Carried 7 | 1 3 6 7 Class Distribution -------------------- 100% | Hacker-Mutant Dominant Class ---------------- Hacker-Mutant | -10/Materials Hacker-Mutant | -10/Mines Hacker-Mutant | -10/Subcaves Resources | -11 -10 -10 -10 ----------- Run | Yrd Mat Min Sub Matter Collected 635 | 288 154 101 92 Remotely . | . . . . Salvage Created 672 | 115 354 77 126 Parts 32 | 6 15 4 7 Haulers Intercepted 2 | . 2 . . Recyclers Shooed . | . . . . Parts Field Recycled . | . . . . Retrieved Matter . | . . . . Parts Self-Destructed . | . . . . Prevented . | . . . . Parts Restored . | . . . . Kills | -11 -10 -10 -10 ------- Run | Yrd Mat Min Sub Combat Hostiles Destroyed 11 | . 6 2 3 Guns 11 | . 6 2 3 Classes Destroyed 5 | 2 2 . 1 Tunneler 1 | 1 . . . Hauler 2 | . 2 . . Recycler 1 | 1 . . . Grunt 8 | . 6 2 . Subdweller 3 | . . . 3 Best Kill Streak 3 | 2 3 2 2 Combat Bots Only 3 | . 3 2 2 Max Kills in Single Turn 2 | 1 2 1 1 Gunslinging 1 | . 1 . . Exploded . | . . . . Melee . | . . . . Uniques/NPCs Destroyed . | . . . . Combat | -11 -10 -10 -10 -------- Run | Yrd Mat Min Sub Hostile Shots Fired 102 | . 31 12 59 Missed 19 | . 6 3 10 Hits 83 | . 25 9 49 Projectile 83 | . 25 9 49 Critical Strikes 1 | . . . 1 Damage Taken 895 | . 168 79 648 Core 251 | . 42 15 194 Absorbed by Shields . | . . . . Redirected to Shielding 48 | . 7 3 38 Ignored by Resistances 545 | . 109 46 390 Core Remaining (%) 100 | 100 . . . Volleys Fired 55 | 3 16 7 29 Largest 2 | 2 2 2 2 Hottest 70 | 40 40 40 70 Shots Fired 93 | 6 32 14 41 Gun 93 | 6 32 14 41 Cannon . | . . . . Launcher . | . . . . Special . | . . . . Kinetic 81 | 6 32 14 29 Thermal 8 | . . . 8 Explosive . | . . . . Electromagnetic 4 | . . . 4 Robot Hit Streak 43 | 5 20 25 43 Robot Miss Streak 2 | . 1 . 2 Penetration Max . | . . . . Secondary Targets 3 | . 2 1 . Max Gunslinging Chain 1 | . 1 1 . Shots Hit Robots 85 | 5 27 14 39 Core Hits 29 | 2 13 5 9 Critical Kills . | . . . . Critical Parts Destroyed . | . . . . Critical Strikes 1 | . . . 1 Destroy 1 | . . . 1 Melee Attacks . | . . . . Impact . | . . . . Slashing . | . . . . Piercing . | . . . . Sneak Attacks . | . . . . Combat Hostiles . | . . . . Follow-up Attacks . | . . . . Damage Inflicted 1051 | 59 330 180 482 Guns 1051 | 59 330 180 482 Cannons . | . . . . Explosions . | . . . . Melee . | . . . . Ramming . | . . . . Kinetic 808 | 59 330 180 239 Thermal 173 | . . . 173 Explosive . | . . . . Electromagnetic 70 | . . . 70 Impact . | . . . . Slashing . | . . . . Piercing . | . . . . Highest Corruption 1 | . 1 1 1 Average Corruption 1 | . 1 1 1 Corruption Purged . | . . . . Corruption Blocked . | . . . . Effects 10 | . 1 7 2 Message Errors 4 | . . 4 . Matter Fused 2 | . . 1 1 Heat Flow Errors 1 | . . 1 . Energy Discharges 2 | . . 1 1 Data Loss (minor) 1 | . 1 . . Overload Shots . | . . . . Overflow Damage . | . . . . Projectiles . | . . . . Explosions . | . . . . Melee . | . . . . Knockbacks . | . . . . Impact . | . . . . Kinetic . | . . . . Secondary . | . . . . Self-Inflicted Damage . | . . . . Shots . | . . . . Rammed . | . . . . Targets Rammed . | . . . . Kicked . | . . . . Crushed . | . . . . Highest Temperature 168 | 6 5 168 . Average Temperature 47 | 6 5 56 . Received Heat Transfer 255 | . 150 69 36 Siege Activations . | . . . . Martial Activations . | . . . . Shielding Activations . | . . . . Robots Disrupted . | . . . . Combat Hostiles . | . . . . Robots Corrupted . | . . . . Combat Hostiles . | . . . . Parts Fried . | . . . . Impact Corruptions . | . . . . Robots Melted . | . . . . Combat Hostiles . | . . . . Parts Melted . | . . . . Heat Transferred 200 | . . . 200 Parts Sabotaged . | . . . . Parts Stolen . | . . . . Parts Stripped . | . . . . Power Chain Reactions . | . . . . Alert | -11 -10 -10 -10 ------- Run | Yrd Mat Min Sub Maximum Alert Level . | . . . . Low Security (%) 100 | 100 100 100 . Level 1 . | . . . . Level 2 . | . . . . Level 3 . | . . . . Level 4 . | . . . . Level 5 . | . . . . High Security . | . . . . Max Security . | . . . . Peak Influence 55 | 10 55 50 . Initial 1 | . . 1 . Average 2 | 1 3 1 . Influence Increases 226 | 10 166 50 . Destroy 0b10 Robot/C 160 | . 120 40 . Destroy 0b10 Robot/NC 20 | 10 10 . . Destroy Leader 34 | . 24 10 . Successful Hack 12 | . 12 . . Influence Decreases 226 | 10 161 55 . Entered New Map 4 | . . 4 . Time Decay 222 | 10 161 51 . Squads Dispatched 2 | . 2 . . Investigation 2 | . 2 . . Extermination . | . . . . Reinforcement . | . . . . Assault . | . . . . Garrison . | . . . . Intercept . | . . . . Searches Triggered . | . . . . Construction Impeded . | . . . . Haulers Reinforced . | . . . . Active Scanning Responses . | . . . . Cargo Convoy Interrupts . | . . . . Stealth | -11 -10 -10 -10 --------- Run | Yrd Mat Min Sub Distress Signals 3 | . 3 . . Communications Jammed . | . . . . Distress Signals . | . . . . Times Spotted 14 | . 6 2 6 Peak Tracking Total 3 | . 3 2 2 Tactical Retreats . | . . . . Traps | -11 -10 -10 -10 ------- Run | Yrd Mat Min Sub Traps Triggered 4 | . 4 . . Indirectly . | . . . . Trap Hack Attempts . | . . . . Triggered . | . . . . Disarmed . | . . . . Reprogrammed . | . . . . Reused . | . . . . Traps Extracted . | . . . . Installed . | . . . . Triggered . | . . . . Machines | -11 -10 -10 -10 ---------- Run | Yrd Mat Min Sub Machines Disabled . | . . . . Max in Single Turn . | . . . . Machines Repaired . | . . . . Machines Dismantled . | . . . . Machines Sabotaged . | . . . . Overloaded Fab Kills . | . . . . Hacking | -11 -10 -10 -10 --------- Run | Yrd Mat Min Sub Machines Accessed 8 | . 7 . 1 Terminals 7 | . 7 . . Fabricators . | . . . . Repair Stations . | . . . . Recycling Units . | . . . . Scanalyzers . | . . . . Garrison Access . | . . . . Total Hacks 21 | . 18 . 3 Successful 16 | . 13 . 3 Failed 5 | . 5 . . Catastrophic . | . . . . Database Lockouts . | . . . . Manual 16 | . 16 . . Terminals 18 | . 18 . . Fabricators . | . . . . Repair Stations . | . . . . Recycling Units . | . . . . Scanalyzers . | . . . . Garrison Access . | . . . . Terminal Hacks 9 | . 6 . 3 Record 3 | . . . 3 Robot Analysis 1 | . 1 . . Prototype ID Bank 5 | . 5 . . Fabricator Hacks . | . . . . Repair Station Hacks . | . . . . Recycling Unit Hacks . | . . . . Scanalyzer . | . . . . Garrison Access Hacks . | . . . . Unauthorized Hacks 7 | . 7 . . Terminals 7 | . 7 . . Botnet 7 | . 7 . . Fabricators . | . . . . Repair Stations . | . . . . Recycling Units . | . . . . Scanalyzers . | . . . . Garrison Access . | . . . . Data Cores Recovered . | . . . . Used . | . . . . Hacking Detections 5 | . 5 . . Full Trace Events 2 | . 2 . . Feedback Events 1 | . 1 . . Corruption 1 | . 1 . . Feedback Blocked . | . . . . Robot Schematics Acquired . | . . . . Robots Built . | . . . . Authchips . | . . . . Time . | . . . . Total Robot Build Rating . | . . . . Part Schematics Acquired . | . . . . Parts Built . | . . . . Authchips . | . . . . Time . | . . . . Total Part Build Rating . | . . . . Part Studies Acquired . | . . . . Parts Repaired . | . . . . Time . | . . . . Parts Recycled . | . . . . Recycled Matter . | . . . . Retrieved Matter . | . . . . Retrieved Components . | . . . . Parts Scanalyzed . | . . . . Part Schematics Acquired . | . . . . Parts Damaged . | . . . . Bothacking | -11 -10 -10 -10 ------------ Run | Yrd Mat Min Sub Used RIF Installer . | . . . . Robots Hacked . | . . . . Non-combat . | . . . . Combat . | . . . . Robot Hacks Applied . | . . . . Relay Couplers Released . | . . . . Fabnet Peak Effective % . | . . . . Robots Rewired . | . . . . Allies Hacked . | . . . . Hacks Repelled . | . . . . Allies | -11 -10 -10 -10 -------- Run | Yrd Mat Min Sub Total Allies . | . . . . Largest Group . | . . . . Highest-Rated Group . | . . . . Highest-Rated Ally . | . . . . Total Orders . | . . . . Ally Attacks . | . . . . Total Damage . | . . . . Kills . | . . . . Allies Corrupted . | . . . . Allies Melted . | . . . . Intel | -11 -10 -10 -10 ------- Run | Yrd Mat Min Sub Active Infowar (turns) 1547 | . 100 1108 339 Structural 1547 | . 100 1108 339 Robot Analysis Total 1 | . 1 . . Derelict Logs Recovered 1 | . . . 1 Drone Launches . | . . . . Drone Recoveries . | . . . . Exploration | -11 -10 -10 -10 ------------- Run | Yrd Mat Min Sub Turns Passed 2826 | 121 1258 1108 339 Spaces Moved 1364 | 59 729 434 142 Core 48 | 25 7 . 16 Treads 1316 | 34 722 434 126 Legs . | . . . . Wheels . | . . . . Hover . | . . . . Flight . | . . . . Fastest Speed 50 | 50 160 160 160 Average Speed 160 | 133 160 160 175 Slowest Speed 350 | 200 300 160 350 Overloaded Moves . | . . . . Propulsion Burnouts . | . . . . Robots Hopped 1 | . 1 . . Potential Cave-ins . | . . . . Cave-ins Triggered . | . . . . Exploration Rate (%) 52 | 4 97 98 10 Regions Visited 3 Branch Regions 2 Pre-discovered Areas 1 | . . 1 . Known Exits Taken 3 | 1 1 1 . Unknown Exits Taken . | . . . . Scrap Searched 6 | . . . 6 Spaces Dug . | . . . . Terrain Destroyed . | . . . . Melee . | . . . . Projectile . | . . . . AOE . | . . . . Terrain Rammed . | . . . . Walls Destroyed . | . . . . Machines Disabled . | . . . . Actions | -11 -10 -10 -10 --------- Run | Yrd Mat Min Sub Total 1905 | 95 783 834 193 Wait 441 | 20 15 391 15 Move 1359 | 58 726 433 142 Hop 1 | . 1 . . Pick Up 27 | 7 13 3 4 Fast Attach 1 | 1 . . . Attach 19 | 6 10 . 3 Detach . | . . . . Swap 1 | . 1 . . Drop 1 | . 1 . . Fire 55 | 3 16 7 29 Melee . | . . . . Ram . | . . . . Kick . | . . . . Crush . | . . . . Escape Stasis . | . . . . Rewire . | . . . . Trap . | . . . . Miscellaneous . | . . . . Route ------- -11/Scrapyard -10/Materials (discovered 5 exits: *Mat x3 / *Min x2) -10/Mines (discovered 3 exits: *Mat x2 / *Sub) -10/Subcaves (discovered 1 exit: *Mat) History --------- Turn | Location | Event 29 | -11/Scrapyard | Identified exit to Materials 29 | -11/Scrapyard | Discovered exit to Materials (range 15) 122 | -11/Scrapyard | Entered Materials 122 | -10/Materials | Evolved 1 slot: Utility x1 123 | -10/Materials | Met a group of wandering Federalists 184 | -10/Materials | Identified exit to Mines 184 | -10/Materials | Discovered exit to Mines (range 10) 313 | -10/Materials | Build established: Hacker-Mutant 393 | -10/Materials | Identified exit to Materials 393 | -10/Materials | Discovered exit to Materials (range 16) 420 | -10/Materials | Discovered exit to Materials (range 15) 462 | -10/Materials | Discovered exit to Materials (range 16) 1264 | -10/Materials | Discovered exit to Mines (range 8) 1380 | -10/Materials | Entered Mines 1622 | -10/Mines | Discovered exit to Materials (range 13) 2051 | -10/Mines | Discovered exit to Materials (range 7) 2059 | -10/Mines | Learned location of Storage (-8) 2244 | -10/Mines | Identified exit to Subcaves 2244 | -10/Mines | Discovered exit to Subcaves (range 8) 2488 | -10/Mines | Entered Subcaves 2489 | -10/Subcaves | Approached by a straggling Scientist 2490 | -10/Subcaves | Identified exit to Materials 2490 | -10/Subcaves | Discovered exit to Materials (range 14) 2597 | -10/Subcaves | Learned Materials terminal intel 2707 | -10/Subcaves | Visited Clippyterm 2712 | -10/Subcaves | Learned Factory emergency access door positions 2755 | -10/Subcaves | Core integrity fell below 50% 2787 | -10/Subcaves | Lost 4 parts (2n2w) 2801 | -10/Subcaves | Core integrity fell below 20% 2827 | -10/Subcaves | Destroyed by TO-JAW(R) with Subdweller Machine Gun Last Messages --------------- with the algorithm, because no matter how much data I collect to feed it, half the time it still manages to suggest unhelpful sample queries and responses. --DD-NU8 02742_ Lgt. Treads destroyed. 02749_ 29-DKN(R) suffers critical hit (Destroy). 02750_ Lgt. Treads destroyed. 02753_ Riot Gun destroyed. 02755_ CO-GB1(R) destroyed. 02756_ Assault Rifle destroyed. 02761_ Acquired Sub. Laser. 02763_ 29-DKN(R) affixes Scrap Shield Fragment to Scrap Shield. 02766_ 29-DKN(R) destroyed. 02768_ Acquired 21 matter. 02777_ Acquired Sub. Power Source. 02805_ Sub. Laser destroyed. 02809_ Acquired 5 matter. 02816_ 0R-UIM(R) affixes Scrap Shield Fragment to Scrap Shield. Map ----- +----------------------------------------------------+ | ?????????????????????????????????????????????????? | | ?????????????????????????????????????????????????? | | ?????????????????????????????????????????????????? | | ?????????????????????????????????????????????????? | | ?????????????????????????????????????????????????? | | ?????????????????????????????????????????????????? | | ?????????????????????????????????????????????????? | | ?????????????????????????????????????????????????? | | ?????????????????????????????????????????????????? | | ?????????????????????????????????????????????????? | | ?????????????????????????????????????????????????? | | ?????????????????????????????????????????????????? | | ?????????????????????????????????????????????????? | | ?????????????????????????????????????????????????? | | ?????????????????????????????????????????????????? | | ?????????????????????????????????????????????????? | | ??????????????????????????#########??????????????? | | ??????????????????????????#########????######????? | | ??????????????????????????##"""""##???########???? | | ??????????????????????????##""X""##??#### ###???? | | ??????????????????????????##" "##?#### ##???? | | ??????????????????????????#### ######## ##???? | | ?????????????????????###?##### ####### ##?### | | ???????????????????######### #### ###### | | ???????????????????## # ### ##### | | ???????????????????## @ | | ??????????????????### R ### | | ??????????????????## ## # ##### ## | | ???????????????? ###### ###### ## | | ?????????????? ?## ##& ###?## ## | | ??????????? ??### =%%! ###??### ## | | ???????????## #### [ ####??#### | | ???????????## #### ###????######## | | ???????????## ###?????######## | | ??????????? ##?????????? ## | | ??????????? ######### ?????????? | | ??????????? ########### ??????? | | ???????????? ???????????#### ## ??????? | | ????????????????????????????### ##### ??????? | | ????????????????????????????#### ###### ??????? # | | ??????????????????????????????#####????? ??????? # | | ???????????????????????????????####??????????????? | | ?????????????????????????????????????????????????? | | ?????????????????????????????????????????????????? | | ?????????????????????????????????????????????????? | | ?????????????????????????????????????????????????? | | ?????????????????????????????????????????????????? | | ?????????????????????????????????????????????????? | | ?????????????????????????????????????????????????? | | ?????????????????????????????????????????????????? | +----------------------------------------------------+ Best States ------------- Heat Dissipation 25 Energy Generation 15 Energy Capacity 250 Matter Stores 300 Matter Capacity 300 Sight Range 16 Terrain Scan Density 10 Resistance: KI 35 Resistance: TH 35 Resistance: EX 35 Resistance: EM 35 Resistance: I 35 Resistance: S 35 Resistance: P 35 Core Shielding 20 Evasion (%) 50 Recoil Reduction 2 Offensive Hacking 20 Item Schematics ----------------- None Robot Schematics ------------------ None Fabricated ------------ Nothing Repaired ---------- Nothing Studied --------- None Alien Tech Used ----------------- None Achievements -------------- None Challenges ------------ None Game ------ Seed HeatVisualShielding Manual? 0 Play Time 00:11:00 Cumulative 227.3 hours Start 2025.12.25 @ 14:44:53 End 2025.12.25 @ 14:53:58 Sessions 1 Manual Loads 0 Difficulty Explorer Special Mode None Game No. 348 Rogue 0 Adventurer 0 Explorer 348 Win Type - Total 0 Types 0/0/0/0/0/0/0/0/0/0 Lore% 71 Gallery% 68 Achievement% 53 Wizard Run 0 Options --------- Layout 1 ASCII 0 Keyboard 0 Movement Mouse Keybinds 0 Fullscreen 1 Font 24/Smallcaps Map View 50x35 Zoom Use 0% Tactical HUD 1 Map Filters NONE Filters NONE Steam 1 RUN: b9106f92-ecbd-4ca7-bd7b-4930bc1ede48